[Event "Titled Tuesday Blitz July 4 Late 2023"]
[White "reevecanada"]
[Black "Garcia Cuenca, Victor"]
[BlackFideId "2250829"]
[WhiteElo "2573"]
[BlackElo "2309"]
[Result "0-1"]
[Round "1"]
[TimeControl "180+2"]
[Date "2023.07.04"]
[WhiteClock "0:00:16"]
[BlackClock "0:00:03"]
[Board "133"]

1. e4 {[%clk 0:02:56]}  e6 {[%clk 0:02:56]} 2. Nf3 {[%clk 0:02:55]}  d5 {[%clk 0:02:55]} 3. Nc3 {[%clk 0:02:47]}  dxe4 {[%clk 0:02:53]} 4. Nxe4 {[%clk 0:02:46]}  c5 {[%clk 0:02:53]} 5. g3 {[%clk 0:02:44]}  Nc6 {[%clk 0:02:53]} 6. Bg2 {[%clk 0:02:43]}  b6 {[%clk 0:02:47]} 7. O-O {[%clk 0:02:42]}  Bb7 {[%clk 0:02:48]} 8. d3 {[%clk 0:02:41]}  Be7 {[%clk 0:02:47]} 9. Bf4 {[%clk 0:02:41]}  Nf6 {[%clk 0:02:46]} 10. Ne5 {[%clk 0:02:39]}  Nd5 {[%clk 0:02:43]} 11. Qg4 {[%clk 0:02:29]}  g6 {[%clk 0:02:26]} 12. Nxc6 {[%clk 0:02:25]}  Bxc6 {[%clk 0:02:24]} 13. Be5 {[%clk 0:02:25]}  O-O {[%clk 0:02:04]} 14. h4 {[%clk 0:02:22]}  f5 {[%clk 0:02:03]} 15. Qh3 {[%clk 0:02:21]}  Qd7 {[%clk 0:01:47]} 16. Ng5 {[%clk 0:02:17]}  h6 {[%clk 0:01:43]} 17. Nf3 {[%clk 0:02:14]}  Nb4 {[%clk 0:01:39]} 18. Bc3 {[%clk 0:02:09]}  Bxf3 {[%clk 0:01:31]} 19. Bxf3 {[%clk 0:02:10]}  Nd5 {[%clk 0:01:21]} 20. Be5 {[%clk 0:02:07]}  Bf6 {[%clk 0:01:21]} 21. Rfe1 {[%clk 0:02:06]}  Rae8 {[%clk 0:01:14]} 22. Re2 {[%clk 0:02:04]}  Bxe5 {[%clk 0:01:00]} 23. Rxe5 {[%clk 0:02:02]}  Nb4 {[%clk 0:01:01]} 24. Re2 {[%clk 0:02:00]}  e5 {[%clk 0:00:53]} 25. h5 {[%clk 0:01:57]}  g5 {[%clk 0:00:52]} 26. g4 {[%clk 0:01:55]}  e4 {[%clk 0:00:49]} 27. dxe4 {[%clk 0:01:53]}  f4 {[%clk 0:00:49]} 28. e5 {[%clk 0:01:52]}  Nc6 {[%clk 0:00:40]} 29. Rae1 {[%clk 0:01:50]}  Nd4 {[%clk 0:00:39]} 30. Re4 {[%clk 0:01:47]}  Nxc2 {[%clk 0:00:35]} 31. Rd1 {[%clk 0:01:47]}  Nd4 {[%clk 0:00:35]} 32. Bh1 {[%clk 0:01:47]}  Re7 {[%clk 0:00:30]} 33. Qc3 {[%clk 0:01:40]}  Ne2+ {[%clk 0:00:28]} 34. Rxe2 {[%clk 0:01:38]}  Qxd1+ {[%clk 0:00:28]} 35. Re1 {[%clk 0:01:38]}  Qd4 {[%clk 0:00:29]} 36. Qc2 {[%clk 0:01:38]}  Re6 {[%clk 0:00:25]} 37. Rd1 {[%clk 0:01:34]}  Qxe5 {[%clk 0:00:20]} 38. Bd5 {[%clk 0:01:35]}  Rf6 {[%clk 0:00:18]} 39. Bxe6+ {[%clk 0:01:33]}  Rxe6 {[%clk 0:00:19]} 40. Qa4 {[%clk 0:01:33]}  f3 {[%clk 0:00:15]} 41. Qxa7 {[%clk 0:01:30]}  Qe4 {[%clk 0:00:12]} 42. Kh1 {[%clk 0:01:17]}  Re8 {[%clk 0:00:05]} 43. Qd7 {[%clk 0:00:53]}  Rf8 {[%clk 0:00:03]} 44. Kh2 {[%clk 0:00:46]}  Qe2 {[%clk 0:00:03]} 45. Rd2 {[%clk 0:00:42]}  Qf1 {[%clk 0:00:03]} 46. Qd5+ {[%clk 0:00:40]}  Rf7 {[%clk 0:00:03]} 47. Qxf7+ {[%clk 0:00:16]}  Kxf7 {[%clk 0:00:03]} 48. Rd7+ {[%clk 0:00:17]}  Ke6 {[%clk 0:00:03]} 49. Re7+ {[%clk 0:00:16]}  Kxe7 {[%clk 0:00:03]} 0-1


[Site "https://www.chess.com"]

[Event "Titled Tuesday Blitz July 4 Late 2023"]
[White "Coelho, Ramyres Santana"]
[Black "Petesch, Gabriel"]
[WhiteFideId "2120690"]
[BlackFideId "2032465"]
[WhiteElo "2304"]
[BlackElo "2567"]
[Result "0-1"]
[Round "1"]
[TimeControl "180+2"]
[Date "2023.07.04"]
[WhiteClock "0:00:12"]
[BlackClock "0:00:11"]
[Board "134"]

1. e4 {[%clk 0:03:00]}  d6 {[%clk 0:02:54]} 2. d4 {[%clk 0:02:57]}  e5 {[%clk 0:02:49]} 3. dxe5 {[%clk 0:02:55]}  dxe5 {[%clk 0:02:47]} 4. Qxd8+ {[%clk 0:02:56]}  Kxd8 {[%clk 0:02:46]} 5. Nf3 {[%clk 0:02:57]}  f6 {[%clk 0:02:46]} 6. Bc4 {[%clk 0:02:55]}  c6 {[%clk 0:02:41]} 7. Nc3 {[%clk 0:02:55]}  Kc7 {[%clk 0:02:38]} 8. Be3 {[%clk 0:02:55]}  Nd7 {[%clk 0:02:27]} 9. O-O-O {[%clk 0:02:53]}  Nb6 {[%clk 0:02:26]} 10. Bb3 {[%clk 0:02:49]}  Bb4 {[%clk 0:02:22]} 11. a3 {[%clk 0:02:45]}  Bxc3 {[%clk 0:02:21]} 12. bxc3 {[%clk 0:02:46]}  Nd7 {[%clk 0:02:13]} 13. c4 {[%clk 0:02:27]}  c5 {[%clk 0:01:54]} 14. Rd5 {[%clk 0:02:19]}  Ne7 {[%clk 0:01:36]} 15. Rhd1 {[%clk 0:02:17]}  Nxd5 {[%clk 0:01:31]} 16. cxd5 {[%clk 0:02:18]}  Kd6 {[%clk 0:01:21]} 17. Nd2 {[%clk 0:02:17]}  b5 {[%clk 0:01:21]} 18. c4 {[%clk 0:02:14]}  a6 {[%clk 0:01:18]} 19. a4 {[%clk 0:02:14]}  b4 {[%clk 0:01:08]} 20. g3 {[%clk 0:02:09]}  a5 {[%clk 0:01:09]} 21. f4 {[%clk 0:02:09]}  Ba6 {[%clk 0:01:10]} 22. Nf3 {[%clk 0:02:04]}  Rae8 {[%clk 0:01:07]} 23. fxe5+ {[%clk 0:01:54]}  Nxe5 {[%clk 0:01:02]} 24. Nxe5 {[%clk 0:01:41]}  fxe5 {[%clk 0:01:03]} 25. Rd2 {[%clk 0:01:25]}  Rhf8 {[%clk 0:01:01]} 26. Kc2 {[%clk 0:01:24]}  Rf3 {[%clk 0:01:00]} 27. Kd3 {[%clk 0:01:24]}  Ref8 {[%clk 0:00:59]} 28. Bd1 {[%clk 0:01:23]}  Bxc4+ {[%clk 0:00:48]} 29. Kxc4 {[%clk 0:01:22]}  Rxe3 {[%clk 0:00:48]} 30. Kb5 {[%clk 0:01:19]}  c4 {[%clk 0:00:42]} 31. Kxc4 {[%clk 0:01:17]}  Rb8 {[%clk 0:00:40]} 32. Rc2 {[%clk 0:00:57]}  Rxe4+ {[%clk 0:00:36]} 33. Kb3 {[%clk 0:00:57]}  Re3+ {[%clk 0:00:34]} 34. Kb2 {[%clk 0:00:56]}  Kxd5 {[%clk 0:00:32]} 35. Be2 {[%clk 0:00:53]}  Rc3 {[%clk 0:00:23]} 36. Rd2+ {[%clk 0:00:53]}  Ke4 {[%clk 0:00:23]} 37. Bb5 {[%clk 0:00:51]}  g5 {[%clk 0:00:20]} 38. Re2+ {[%clk 0:00:51]}  Kd5 {[%clk 0:00:20]} 39. Rd2+ {[%clk 0:00:51]}  Ke6 {[%clk 0:00:20]} 40. Bd7+ {[%clk 0:00:50]}  Ke7 {[%clk 0:00:20]} 41. Bb5 {[%clk 0:00:50]}  Rd8 {[%clk 0:00:20]} 42. Re2 {[%clk 0:00:51]}  Ke6 {[%clk 0:00:20]} 43. Rf2 {[%clk 0:00:44]}  e4 {[%clk 0:00:19]} 44. h4 {[%clk 0:00:42]}  h6 {[%clk 0:00:19]} 45. hxg5 {[%clk 0:00:42]}  hxg5 {[%clk 0:00:20]} 46. Re2 {[%clk 0:00:38]}  e3 {[%clk 0:00:19]} 47. Kb1 {[%clk 0:00:38]}  Ke5 {[%clk 0:00:18]} 48. Rh2 {[%clk 0:00:33]}  Rd1+ {[%clk 0:00:18]} 49. Kb2 {[%clk 0:00:32]}  Rd2+ {[%clk 0:00:19]} 50. Rxd2 {[%clk 0:00:32]}  exd2 {[%clk 0:00:20]} 51. Be2 {[%clk 0:00:33]}  Kd4 {[%clk 0:00:20]} 52. Bd1 {[%clk 0:00:33]}  Ke3 {[%clk 0:00:20]} 53. g4 {[%clk 0:00:29]}  Kf2 {[%clk 0:00:19]} 54. Bb3 {[%clk 0:00:28]}  Ke1 {[%clk 0:00:20]} 55. Bc2 {[%clk 0:00:20]}  Rxc2+ {[%clk 0:00:19]} 56. Kb3 {[%clk 0:00:17]}  Rc3+ {[%clk 0:00:18]} 57. Kb2 {[%clk 0:00:16]}  d1=Q {[%clk 0:00:17]} 58. Ka2 {[%clk 0:00:16]}  Qd2+ {[%clk 0:00:17]} 59. Kb1 {[%clk 0:00:16]}  b3 {[%clk 0:00:17]} 60. Ka1 {[%clk 0:00:14]}  b2+ {[%clk 0:00:16]} 61. Ka2 {[%clk 0:00:14]}  Ra3+ {[%clk 0:00:15]} 62. Kxa3 {[%clk 0:00:12]}  Kd1 {[%clk 0:00:12]} 63. Kb3 {[%clk 0:00:11]}  b1=Q+ {[%clk 0:00:11]} 64. Kc4 {[%clk 0:00:12]}  Qbb4# {[%clk 0:00:11]} 0-1


[Site "https://www.chess.com"]

[Event "Titled Tuesday Blitz July 4 Late 2023"]
[White "ATM622"]
[Black "Ardila, Oscar Humberto"]
[BlackFideId "4404742"]
[WhiteElo "2563"]
[BlackElo "2302"]
[Result "1/2-1/2"]
[Round "1"]
[TimeControl "180+2"]
[Date "2023.07.04"]
[WhiteClock "0:00:08"]
[BlackClock "0:00:03"]
[Board "135"]

1. d4 {[%clk 0:03:00]}  Nf6 {[%clk 0:02:59]} 2. c4 {[%clk 0:02:55]}  e6 {[%clk 0:02:59]} 3. g3 {[%clk 0:02:54]}  Bb4+ {[%clk 0:02:59]} 4. Nd2 {[%clk 0:02:52]}  O-O {[%clk 0:02:58]} 5. Bg2 {[%clk 0:02:52]}  d5 {[%clk 0:02:57]} 6. Qc2 {[%clk 0:02:50]}  Nc6 {[%clk 0:02:52]} 7. Nf3 {[%clk 0:02:49]}  dxc4 {[%clk 0:02:48]} 8. Qxc4 {[%clk 0:02:41]}  Qe7 {[%clk 0:02:45]} 9. O-O {[%clk 0:02:29]}  Rd8 {[%clk 0:02:39]} 10. a3 {[%clk 0:02:28]}  Bxd2 {[%clk 0:02:38]} 11. Bxd2 {[%clk 0:02:29]}  Bd7 {[%clk 0:02:38]} 12. b4 {[%clk 0:02:28]}  a6 {[%clk 0:02:35]} 13. Rac1 {[%clk 0:02:27]}  Ne4 {[%clk 0:02:34]} 14. Bf4 {[%clk 0:02:17]}  Nd6 {[%clk 0:02:30]} 15. Qb3 {[%clk 0:02:14]}  Rac8 {[%clk 0:02:24]} 16. Ne5 {[%clk 0:02:10]}  Nxe5 {[%clk 0:02:19]} 17. Bxe5 {[%clk 0:01:57]}  c6 {[%clk 0:02:14]} 18. e4 {[%clk 0:01:46]}  f6 {[%clk 0:02:12]} 19. Bxd6 {[%clk 0:01:43]}  Qxd6 {[%clk 0:02:11]} 20. Rfd1 {[%clk 0:01:44]}  Kh8 {[%clk 0:01:59]} 21. Qe3 {[%clk 0:01:41]}  Qe7 {[%clk 0:01:58]} 22. f4 {[%clk 0:01:40]}  Be8 {[%clk 0:01:56]} 23. e5 {[%clk 0:01:40]}  Bh5 {[%clk 0:01:56]} 24. Bf3 {[%clk 0:01:39]}  Bxf3 {[%clk 0:01:54]} 25. Qxf3 {[%clk 0:01:39]}  f5 {[%clk 0:01:53]} 26. Qc3 {[%clk 0:01:36]}  Rd5 {[%clk 0:01:53]} 27. Kf2 {[%clk 0:01:32]}  Rcd8 {[%clk 0:01:53]} 28. Rd2 {[%clk 0:01:28]}  Qd7 {[%clk 0:01:51]} 29. Rcd1 {[%clk 0:01:28]}  Qe7 {[%clk 0:01:49]} 30. Qe3 {[%clk 0:01:23]}  Qf7 {[%clk 0:01:48]} 31. Qc3 {[%clk 0:01:22]}  Qh5 {[%clk 0:01:47]} 32. Kg2 {[%clk 0:01:19]}  h6 {[%clk 0:01:46]} 33. Qf3 {[%clk 0:01:19]}  Qf7 {[%clk 0:01:45]} 34. Qb3 {[%clk 0:01:16]}  Qd7 {[%clk 0:01:42]} 35. Qc4 {[%clk 0:01:15]}  Kh7 {[%clk 0:01:42]} 36. a4 {[%clk 0:01:12]}  g5 {[%clk 0:01:30]} 37. Kh1 {[%clk 0:01:02]}  Kg6 {[%clk 0:01:29]} 38. Qe2 {[%clk 0:00:56]}  Qe7 {[%clk 0:01:24]} 39. Qc4 {[%clk 0:00:52]}  R8d7 {[%clk 0:01:23]} 40. Kg2 {[%clk 0:00:51]}  Qd8 {[%clk 0:01:23]} 41. Qc3 {[%clk 0:00:50]}  Qb6 {[%clk 0:01:22]} 42. Qc4 {[%clk 0:00:49]}  Qd8 {[%clk 0:01:21]} 43. a5 {[%clk 0:00:48]}  g4 {[%clk 0:01:21]} 44. h3 {[%clk 0:00:46]}  gxh3+ {[%clk 0:01:16]} 45. Kxh3 {[%clk 0:00:47]}  h5 {[%clk 0:01:15]} 46. Kh2 {[%clk 0:00:42]}  Kf7 {[%clk 0:01:02]} 47. Qe2 {[%clk 0:00:41]}  Qh8 {[%clk 0:01:01]} 48. Kg2 {[%clk 0:00:41]}  Kg6 {[%clk 0:00:56]} 49. Qe3 {[%clk 0:00:39]}  Qf8 {[%clk 0:00:52]} 50. Qc3 {[%clk 0:00:34]}  Rh7 {[%clk 0:00:49]} 51. Rh1 {[%clk 0:00:34]}  Qd8 {[%clk 0:00:48]} 52. Kg1 {[%clk 0:00:33]}  Rhd7 {[%clk 0:00:41]} 53. Qf3 {[%clk 0:00:33]}  Rh7 {[%clk 0:00:39]} 54. Qe3 {[%clk 0:00:32]}  Kg7 {[%clk 0:00:33]} 55. Kg2 {[%clk 0:00:30]}  Qe8 {[%clk 0:00:32]} 56. Rdd1 {[%clk 0:00:26]}  Qe7 {[%clk 0:00:32]} 57. Qc3 {[%clk 0:00:23]}  Qf7 {[%clk 0:00:31]} 58. Rh4 {[%clk 0:00:22]}  Kg6 {[%clk 0:00:21]} 59. Qf3 {[%clk 0:00:21]}  Qe7 {[%clk 0:00:19]} 60. Rdh1 {[%clk 0:00:20]}  Qxb4 {[%clk 0:00:19]} 61. Rxh5 {[%clk 0:00:18]}  Qd2+ {[%clk 0:00:19]} 62. Kf1 {[%clk 0:00:13]}  Qc1+ {[%clk 0:00:13]} 63. Kg2 {[%clk 0:00:13]}  Qb2+ {[%clk 0:00:12]} 64. Kf1 {[%clk 0:00:10]}  Qb1+ {[%clk 0:00:10]} 65. Kg2 {[%clk 0:00:10]}  Qc2+ {[%clk 0:00:10]} 66. Kg1 {[%clk 0:00:09]}  Qc1+ {[%clk 0:00:04]} 67. Kg2 {[%clk 0:00:08]}  Qd2+ {[%clk 0:00:04]} 68. Kf1 {[%clk 0:00:08]}  Qc1+ {[%clk 0:00:03]} 69. Ke2 {[%clk 0:00:08]}  Qb2+ {[%clk 0:00:03]} 70. Kf1 {[%clk 0:00:08]}  Qc1+ {[%clk 0:00:03]} 1/2-1/2


[Site "https://www.chess.com"]

[Event "Titled Tuesday Blitz July 4 Late 2023"]
[White "Gerbelli Neto, Eduardo"]
[Black "Siniauski, Artsiom"]
[WhiteFideId "2103281"]
[BlackFideId "13512269"]
[WhiteElo "2295"]
[BlackElo "2562"]
[Result "1-0"]
[Round "1"]
[TimeControl "180+2"]
[Date "2023.07.04"]
[WhiteClock "0:00:35"]
[BlackClock "0:00:08"]
[Board "138"]

1. e4 {[%clk 0:02:59]}  e6 {[%clk 0:02:31]} 2. d4 {[%clk 0:02:58]}  d5 {[%clk 0:02:32]} 3. Nc3 {[%clk 0:02:58]}  Nf6 {[%clk 0:02:32]} 4. e5 {[%clk 0:02:58]}  Nfd7 {[%clk 0:02:32]} 5. Nf3 {[%clk 0:02:58]}  c5 {[%clk 0:02:33]} 6. dxc5 {[%clk 0:02:59]}  Bxc5 {[%clk 0:02:31]} 7. Bd3 {[%clk 0:02:58]}  Nc6 {[%clk 0:02:31]} 8. Bf4 {[%clk 0:02:57]}  a6 {[%clk 0:02:29]} 9. O-O {[%clk 0:02:56]}  b5 {[%clk 0:02:30]} 10. a3 {[%clk 0:02:56]}  Qb6 {[%clk 0:02:29]} 11. Qd2 {[%clk 0:02:34]}  h6 {[%clk 0:02:26]} 12. h4 {[%clk 0:02:32]}  Bb7 {[%clk 0:01:57]} 13. b4 {[%clk 0:02:26]}  Be7 {[%clk 0:01:56]} 14. Ne2 {[%clk 0:02:15]}  g5 {[%clk 0:01:54]} 15. hxg5 {[%clk 0:02:12]}  hxg5 {[%clk 0:01:54]} 16. Bxg5 {[%clk 0:02:10]}  Ncxe5 {[%clk 0:01:48]} 17. Nxe5 {[%clk 0:02:04]}  Nxe5 {[%clk 0:01:47]} 18. Bxe7 {[%clk 0:02:03]}  Kxe7 {[%clk 0:01:47]} 19. Qg5+ {[%clk 0:02:03]}  f6 {[%clk 0:01:45]} 20. Qg7+ {[%clk 0:01:59]}  Kd6 {[%clk 0:01:42]} 21. Ng3 {[%clk 0:01:33]}  Rhg8 {[%clk 0:01:28]} 22. Nf5+ {[%clk 0:01:25]}  Kc6 {[%clk 0:01:07]} 23. Ne7+ {[%clk 0:01:22]}  Kd7 {[%clk 0:01:06]} 24. Nxg8+ {[%clk 0:01:22]}  Kc8 {[%clk 0:01:01]} 25. Qxf6 {[%clk 0:01:12]}  Nd7 {[%clk 0:00:44]} 26. Qg7 {[%clk 0:00:55]}  d4 {[%clk 0:00:44]} 27. Rfe1 {[%clk 0:00:51]}  Kc7 {[%clk 0:00:37]} 28. Be4 {[%clk 0:00:43]}  Bxe4 {[%clk 0:00:21]} 29. Rxe4 {[%clk 0:00:44]}  Qc6 {[%clk 0:00:22]} 30. Nf6 {[%clk 0:00:42]}  Rd8 {[%clk 0:00:16]} 31. Rae1 {[%clk 0:00:39]}  Qxc2 {[%clk 0:00:15]} 32. Rxd4 {[%clk 0:00:36]}  Qc6 {[%clk 0:00:08]} 33. Rxd7+ {[%clk 0:00:35]} 1-0


[Site "https://www.chess.com"]

[Event "Titled Tuesday Blitz July 4 Late 2023"]
[White "Jimenez Almeida, Luis David"]
[Black "Kostiukov, Alexandr"]
[WhiteFideId "22242244"]
[BlackFideId "14108100"]
[WhiteElo "2557"]
[BlackElo "2288"]
[Result "0-1"]
[Round "1"]
[TimeControl "180+2"]
[Date "2023.07.04"]
[WhiteClock "0:00:16"]
[BlackClock "0:00:21"]
[Board "143"]

1. e4 {[%clk 0:03:00]}  c5 {[%clk 0:02:52]} 2. Nc3 {[%clk 0:02:59]}  g6 {[%clk 0:02:52]} 3. Nge2 {[%clk 0:02:58]}  Bg7 {[%clk 0:02:53]} 4. g3 {[%clk 0:02:58]}  Nc6 {[%clk 0:02:52]} 5. Bg2 {[%clk 0:02:58]}  d6 {[%clk 0:02:52]} 6. O-O {[%clk 0:02:58]}  e5 {[%clk 0:02:53]} 7. d3 {[%clk 0:02:57]}  Nge7 {[%clk 0:02:53]} 8. Be3 {[%clk 0:02:54]}  O-O {[%clk 0:02:52]} 9. Qd2 {[%clk 0:02:54]}  Nd4 {[%clk 0:02:52]} 10. f4 {[%clk 0:02:50]}  Be6 {[%clk 0:02:40]} 11. Rae1 {[%clk 0:02:38]}  Qd7 {[%clk 0:02:39]} 12. Nd5 {[%clk 0:02:32]}  Bxd5 {[%clk 0:02:33]} 13. exd5 {[%clk 0:02:33]}  Nxe2+ {[%clk 0:02:21]} 14. Qxe2 {[%clk 0:02:29]}  exf4 {[%clk 0:02:12]} 15. Bxf4 {[%clk 0:02:26]}  Nf5 {[%clk 0:02:10]} 16. c3 {[%clk 0:02:25]}  Rfe8 {[%clk 0:02:06]} 17. Qd2 {[%clk 0:02:24]}  Qa4 {[%clk 0:02:01]} 18. a3 {[%clk 0:02:16]}  Be5 {[%clk 0:01:55]} 19. Bxe5 {[%clk 0:02:12]}  Rxe5 {[%clk 0:01:53]} 20. Re4 {[%clk 0:02:00]}  Qd7 {[%clk 0:01:43]} 21. Bh3 {[%clk 0:01:54]}  Rae8 {[%clk 0:01:35]} 22. Qf4 {[%clk 0:01:48]}  Qd8 {[%clk 0:01:23]} 23. Rfe1 {[%clk 0:01:40]}  Rxe4 {[%clk 0:01:21]} 24. Rxe4 {[%clk 0:01:37]}  Rxe4 {[%clk 0:01:19]} 25. dxe4 {[%clk 0:01:37]}  Ng7 {[%clk 0:01:16]} 26. e5 {[%clk 0:01:32]}  Ne8 {[%clk 0:01:13]} 27. b4 {[%clk 0:01:10]}  b6 {[%clk 0:01:11]} 28. Bg2 {[%clk 0:01:06]}  Qe7 {[%clk 0:01:07]} 29. exd6 {[%clk 0:00:59]}  Nxd6 {[%clk 0:01:07]} 30. h4 {[%clk 0:00:57]}  f6 {[%clk 0:00:56]} 31. Kh2 {[%clk 0:00:56]}  Qe5 {[%clk 0:00:56]} 32. Qg4 {[%clk 0:00:49]}  Nf5 {[%clk 0:00:46]} 33. bxc5 {[%clk 0:00:47]}  bxc5 {[%clk 0:00:46]} 34. h5 {[%clk 0:00:47]}  Kg7 {[%clk 0:00:46]} 35. a4 {[%clk 0:00:44]}  a5 {[%clk 0:00:45]} 36. hxg6 {[%clk 0:00:43]}  hxg6 {[%clk 0:00:44]} 37. Be4 {[%clk 0:00:39]}  Ne7 {[%clk 0:00:36]} 38. Qf3 {[%clk 0:00:33]}  f5 {[%clk 0:00:35]} 39. Bc2 {[%clk 0:00:26]}  Nxd5 {[%clk 0:00:34]} 40. c4 {[%clk 0:00:26]}  Ne3 {[%clk 0:00:32]} 41. Bd3 {[%clk 0:00:25]}  Ng4+ {[%clk 0:00:30]} 42. Kh3 {[%clk 0:00:24]}  Kh6 {[%clk 0:00:25]} 43. Be2 {[%clk 0:00:17]}  Kg5 {[%clk 0:00:22]} 44. Qd3 {[%clk 0:00:16]}  Qh8+ {[%clk 0:00:21]} 45. Kg2 {[%clk 0:00:16]}  Qh2+ {[%clk 0:00:21]} 46. Kf1 {[%clk 0:00:16]}  Qf2# {[%clk 0:00:21]} 0-1


[Site "https://www.chess.com"]

[Event "Titled Tuesday Blitz July 4 Late 2023"]
[White "Saucey, Michel"]
[Black "Ozates, Tuna"]
[WhiteFideId "601845"]
[BlackFideId "6354521"]
[WhiteElo "2272"]
[BlackElo "2554"]
[Result "1/2-1/2"]
[Round "1"]
[TimeControl "180+2"]
[Date "2023.07.04"]
[WhiteClock "0:00:49"]
[BlackClock "0:00:11"]
[Board "146"]

1. d4 {[%clk 0:03:00]}  f5 {[%clk 0:02:59]} 2. Nf3 {[%clk 0:02:59]}  Nf6 {[%clk 0:02:58]} 3. g3 {[%clk 0:03:00]}  e6 {[%clk 0:02:59]} 4. Bg2 {[%clk 0:03:00]}  Be7 {[%clk 0:02:59]} 5. O-O {[%clk 0:03:00]}  O-O {[%clk 0:03:00]} 6. c4 {[%clk 0:03:00]}  d6 {[%clk 0:03:01]} 7. Nc3 {[%clk 0:02:59]}  Ne4 {[%clk 0:02:58]} 8. Qc2 {[%clk 0:02:58]}  Nxc3 {[%clk 0:02:57]} 9. bxc3 {[%clk 0:02:58]}  Bf6 {[%clk 0:02:52]} 10. Rb1 {[%clk 0:02:43]}  Nc6 {[%clk 0:02:38]} 11. d5 {[%clk 0:02:41]}  exd5 {[%clk 0:02:33]} 12. cxd5 {[%clk 0:02:41]}  Ne5 {[%clk 0:02:31]} 13. Nd4 {[%clk 0:02:39]}  g6 {[%clk 0:02:21]} 14. Rd1 {[%clk 0:02:29]}  Qe7 {[%clk 0:02:11]} 15. c4 {[%clk 0:02:28]}  Rb8 {[%clk 0:02:06]} 16. Nc6 {[%clk 0:02:21]}  Nxc6 {[%clk 0:02:02]} 17. dxc6 {[%clk 0:02:20]}  b6 {[%clk 0:02:02]} 18. Bd5+ {[%clk 0:02:10]}  Be6 {[%clk 0:01:59]} 19. e4 {[%clk 0:02:09]}  Bxd5 {[%clk 0:01:52]} 20. exd5 {[%clk 0:02:01]}  Rbe8 {[%clk 0:01:42]} 21. Be3 {[%clk 0:01:59]}  Qe4 {[%clk 0:01:33]} 22. Qxe4 {[%clk 0:01:50]}  Rxe4 {[%clk 0:01:34]} 23. Rbc1 {[%clk 0:01:48]}  g5 {[%clk 0:01:28]} 24. Kf1 {[%clk 0:01:35]}  f4 {[%clk 0:01:23]} 25. Bd2 {[%clk 0:01:33]}  Bd4 {[%clk 0:01:18]} 26. gxf4 {[%clk 0:01:30]}  Bc5 {[%clk 0:01:01]} 27. Re1 {[%clk 0:01:27]}  Rxe1+ {[%clk 0:00:24]} 28. Rxe1 {[%clk 0:01:26]}  gxf4 {[%clk 0:00:24]} 29. Re7 {[%clk 0:01:24]}  Rf7 {[%clk 0:00:22]} 30. Rxf7 {[%clk 0:01:22]}  Kxf7 {[%clk 0:00:23]} 31. Bxf4 {[%clk 0:01:22]}  Kf6 {[%clk 0:00:23]} 32. Ke2 {[%clk 0:01:19]}  Kf5 {[%clk 0:00:23]} 33. Be3 {[%clk 0:01:19]}  Bb4 {[%clk 0:00:20]} 34. f3 {[%clk 0:01:14]}  Bc3 {[%clk 0:00:20]} 35. h3 {[%clk 0:01:10]}  Be5 {[%clk 0:00:20]} 36. Kd3 {[%clk 0:01:10]}  h5 {[%clk 0:00:17]} 37. a4 {[%clk 0:01:08]}  Bf6 {[%clk 0:00:15]} 38. Ke2 {[%clk 0:00:50]}  Be5 {[%clk 0:00:11]} 39. Kd3 {[%clk 0:00:49]}  Bf6 {[%clk 0:00:11]} 40. Ke2 {[%clk 0:00:49]}  Be5 {[%clk 0:00:11]} 41. Kd3 {[%clk 0:00:49]} 1/2-1/2


[Site "https://www.chess.com"]

[Event "Titled Tuesday Blitz July 4 Late 2023"]
[White "Estrada Nieto, Julian"]
[Black "Barwinska, Ewa"]
[WhiteFideId "5101018"]
[BlackFideId "21833761"]
[WhiteElo "2553"]
[BlackElo "2272"]
[Result "1-0"]
[Round "1"]
[TimeControl "180+2"]
[Date "2023.07.04"]
[WhiteClock "0:00:17"]
[BlackClock "0:00:04"]
[Board "147"]

1. e4 {[%clk 0:02:59]}  c5 {[%clk 0:02:58]} 2. Nf3 {[%clk 0:02:58]}  Nc6 {[%clk 0:02:56]} 3. Bb5 {[%clk 0:02:58]}  g6 {[%clk 0:02:42]} 4. Bxc6 {[%clk 0:02:57]}  bxc6 {[%clk 0:02:42]} 5. O-O {[%clk 0:02:57]}  Bg7 {[%clk 0:02:42]} 6. Re1 {[%clk 0:02:57]}  d5 {[%clk 0:02:41]} 7. e5 {[%clk 0:02:53]}  e6 {[%clk 0:02:34]} 8. c3 {[%clk 0:02:53]}  d4 {[%clk 0:02:28]} 9. Qa4 {[%clk 0:02:43]}  Ne7 {[%clk 0:02:19]} 10. cxd4 {[%clk 0:02:16]}  cxd4 {[%clk 0:02:20]} 11. d3 {[%clk 0:02:15]}  O-O {[%clk 0:01:21]} 12. Bg5 {[%clk 0:02:14]}  c5 {[%clk 0:01:12]} 13. Nbd2 {[%clk 0:02:10]}  h6 {[%clk 0:01:07]} 14. Bf6 {[%clk 0:01:58]}  Bxf6 {[%clk 0:01:05]} 15. exf6 {[%clk 0:01:58]}  Nd5 {[%clk 0:01:04]} 16. Rac1 {[%clk 0:01:49]}  Nf4 {[%clk 0:00:45]} 17. Qa3 {[%clk 0:01:37]}  Qxf6 {[%clk 0:00:41]} 18. Rxc5 {[%clk 0:01:28]}  Bb7 {[%clk 0:00:41]} 19. Ne4 {[%clk 0:01:20]}  Bxe4 {[%clk 0:00:39]} 20. Rxe4 {[%clk 0:01:20]}  Nh3+ {[%clk 0:00:34]} 21. Kf1 {[%clk 0:01:12]}  Rfd8 {[%clk 0:00:21]} 22. Qa4 {[%clk 0:00:55]}  Rab8 {[%clk 0:00:17]} 23. Qc2 {[%clk 0:00:51]}  Ng5 {[%clk 0:00:17]} 24. Nxg5 {[%clk 0:00:50]}  hxg5 {[%clk 0:00:17]} 25. b3 {[%clk 0:00:47]}  Kg7 {[%clk 0:00:11]} 26. h3 {[%clk 0:00:43]}  Qe7 {[%clk 0:00:10]} 27. Rc7 {[%clk 0:00:40]}  Qd6 {[%clk 0:00:09]} 28. Qc5 {[%clk 0:00:33]}  Qxc5 {[%clk 0:00:09]} 29. Rxc5 {[%clk 0:00:33]}  Rd7 {[%clk 0:00:06]} 30. Ke2 {[%clk 0:00:28]}  Kf6 {[%clk 0:00:06]} 31. Ree5 {[%clk 0:00:23]}  Rbb7 {[%clk 0:00:06]} 32. Rxg5 {[%clk 0:00:22]}  Rbc7 {[%clk 0:00:06]} 33. Kd2 {[%clk 0:00:20]}  Rxc5 {[%clk 0:00:03]} 34. Rxc5 {[%clk 0:00:19]}  e5 {[%clk 0:00:04]} 35. Ra5 {[%clk 0:00:19]}  Kf5 {[%clk 0:00:04]} 36. f3 {[%clk 0:00:19]}  f6 {[%clk 0:00:04]} 37. Ke2 {[%clk 0:00:19]}  Kf4 {[%clk 0:00:05]} 38. Rc5 {[%clk 0:00:19]}  f5 {[%clk 0:00:05]} 39. Kf2 {[%clk 0:00:19]}  Re7 {[%clk 0:00:05]} 40. g3+ {[%clk 0:00:19]}  Kg5 {[%clk 0:00:05]} 41. h4+ {[%clk 0:00:19]}  Kh5 {[%clk 0:00:05]} 42. b4 {[%clk 0:00:20]}  e4 {[%clk 0:00:05]} 43. dxe4 {[%clk 0:00:18]}  Rb7 {[%clk 0:00:04]} 44. a3 {[%clk 0:00:17]}  Rf7 {[%clk 0:00:02]} 45. exf5 {[%clk 0:00:17]}  gxf5 {[%clk 0:00:03]} 46. g4+ {[%clk 0:00:15]}  Kg6 {[%clk 0:00:03]} 47. Rxf5 {[%clk 0:00:15]}  Rxf5 {[%clk 0:00:04]} 48. gxf5+ {[%clk 0:00:15]}  Kxf5 {[%clk 0:00:05]} 49. Ke2 {[%clk 0:00:16]}  Kf4 {[%clk 0:00:05]} 50. Kd3 {[%clk 0:00:16]}  Kxf3 {[%clk 0:00:05]} 51. Kxd4 {[%clk 0:00:16]}  Kg4 {[%clk 0:00:06]} 52. Kc5 {[%clk 0:00:16]}  Kxh4 {[%clk 0:00:07]} 53. a4 {[%clk 0:00:17]}  Kg5 {[%clk 0:00:04]} 54. b5 {[%clk 0:00:17]} 1-0


[Site "https://www.chess.com"]